fUSD/lending_fUSD_20260504
["ID","MTS","AMOUNT","RATE_DAILY","PERIOD"]
[421575705,1777906198000,-1502.0,0.0004237,60]
[421575706,1777906198000,-1502.0,0.0004237,60]
[421575704,1777906198000,-2486.93506699,0.0004237,60]
[421575718,1777906198000,-159.0,0.00042371,120]
[421575711,1777906198000,-1948.18,0.0004237,60]
[421575707,1777906198000,-1502.0,0.0004237,60]
[421575719,1777906198000,-152.0,0.00042371,120]
[421575722,1777906198000,-156.0,0.00042371,120]
[421575721,1777906198000,-155.0,0.00042371,120]
[421575736,1777906198000,-243.34120498,0.00042385,30]
[421575735,1777906198000,-286.79533695,0.00042378,120]
[421575733,1777906198000,-50000.0,0.00042377,63]
[421575731,1777906198000,-50000.0,0.00042377,61]
[421575732,1777906198000,-50000.0,0.00042377,62]
[421575730,1777906198000,-50000.0,0.00042377,60]
[421575734,1777906198000,-50000.0,0.00042377,64]
[421575729,1777906198000,-1224.34,0.00042372,120]
[421575727,1777906198000,-159.0,0.00042372,120]
[421575725,1777906198000,-155.0,0.00042372,120]
[421575726,1777906198000,-161.0,0.00042372,120]
[421575723,1777906198000,-307.0,0.00042371,120]
[421575724,1777906198000,-494.29189016,0.00042372,120]
[421575720,1777906198000,-155.0,0.00042371,120]
[421575728,1777906198000,-160.0,0.00042372,120]
[421575746,1777906199000,-100000.0,0.000424,120]
[421575755,1777906199000,-997.83110456,0.00042464,60]
[421575753,1777906199000,-860.26,0.00042443,120]
[421575750,1777906199000,-12401.23990232,0.00042429,120]
[421575751,1777906199000,-667.79457908,0.0004243,30]
[421575748,1777906199000,-305.8630068,0.00042411,120]
[421575749,1777906199000,-572.424215,0.00042421,77]
[421575747,1777906199000,-159.0,0.000424,120]
[421575738,1777906199000,-169.06665037,0.00042392,120]
[421575744,1777906199000,-998.8731101,0.000424,120]
[421575742,1777906199000,-19947.42415145,0.00042392,120]
[421575743,1777906199000,-154.42,0.00042397,120]
[421575741,1777906199000,-7098.67862995,0.00042392,120]
[421575740,1777906199000,-415.18049119,0.00042392,120]
[421575739,1777906199000,-1118.0,0.00042392,30]
[421575737,1777906199000,-200.0,0.00042391,120]
[421575745,1777906199000,-172.29,0.000424,30]
[421575754,1777906199000,-305.8630068,0.00042458,120]
[421575752,1777906199000,-151.0,0.00042441,60]
[421575757,1777906199000,-5000.0,0.00042466,120]
[421575756,1777906199000,-300.0,0.00042466,120]
[421575774,1777906199000,-370.96448051,0.000425,120]
[421575775,1777906199000,-21010.76535599,0.000425,120]
[421575772,1777906199000,-30000.0,0.000425,30]
[421575771,1777906199000,-8000.0,0.000425,120]
[421575769,1777906199000,-979.28,0.000425,115]
[421575770,1777906199000,-1168.48,0.000425,120]
[421575767,1777906199000,-500.0,0.000425,120]
[421575766,1777906199000,-500000.0,0.00042499,120]
[421575773,1777906199000,-50000.0,0.000425,30]
[421575765,1777906199000,-154.42,0.00042497,120]
[421575763,1777906199000,-789.83375792,0.0004249,30]
[421575764,1777906199000,-891.78,0.00042493,120]
[421575762,1777906199000,-805.71,0.00042467,120]
[421575761,1777906199000,-157.91948405,0.00042466,120]
[421575760,1777906199000,-157.91948404,0.00042466,120]
[421575759,1777906199000,-5000.0,0.00042466,120]
[421575758,1777906199000,-5000.0,0.00042466,120]
[421575768,1777906199000,-1500.0,0.000425,120]
[421575788,1777906200000,-199.0,0.00042543,120]
[421575789,1777906200000,-3159.18,0.00042546,120]
[421575786,1777906200000,-972.15,0.00042507,120]
[421575787,1777906200000,-860.26,0.00042543,120]
[421575785,1777906200000,-305.8630068,0.00042505,120]
[421575784,1777906200000,-14395.57,0.000425,90]
[421575782,1777906200000,-263.7673802,0.000425,120]
[421575780,1777906200000,-600.0,0.000425,90]
[421575783,1777906200000,-8026.64883201,0.000425,120]
[421575778,1777906200000,-615.0,0.000425,90]
[421575779,1777906200000,-25900.0,0.000425,120]
[421575777,1777906200000,-152.0,0.000425,120]
[421575776,1777906200000,-3310.58089376,0.000425,120]
[421575790,1777906200000,-372.85,0.00042546,120]
[421575781,1777906200000,-317.74791227,0.000425,120]
[421575791,1777906200000,-305.8630068,0.00042553,120]
[421575794,1777906200000,-154.67780294,0.00042597,120]
[421575809,1777906200000,-972.17671411,0.00042707,120]
[421575793,1777906200000,-891.78,0.00042593,120]
[421575808,1777906200000,-2500.0,0.000427,120]
[421575806,1777906200000,-150.0,0.00042697,30]
[421575807,1777906200000,-1000.0,0.000427,120]
[421575804,1777906200000,-12000.0,0.0004268,90]
[421575805,1777906200000,-891.78,0.00042693,120]
[421575803,1777906200000,-805.71,0.00042667,120]
[421575802,1777906200000,-500.0,0.00042666,120]
[421575800,1777906200000,-972.15,0.00042607,120]
[421575801,1777906200000,-860.26,0.00042643,120]
[421575797,1777906200000,-647.45799424,0.000426,120]
[421575798,1777906200000,-305.8630068,0.000426,120]
[421575796,1777906200000,-513.7877298,0.000426,120]
[421575795,1777906200000,-449.62086662,0.000426,120]
[421575792,1777906200000,-805.71,0.00042567,120]
[421575799,1777906200000,-218.19914079,0.000426,120]
[421575818,1777906201000,-1000.0,0.000428,120]
[421575821,1777906201000,-2000.0,0.00042819,120]
[421575823,1777906201000,-805.71,0.00042867,120]
[421575826,1777906201000,-890.480081,0.00042888,120]
[421575827,1777906201000,-891.97860128,0.00042893,120]
[421575820,1777906201000,-227.87315076,0.000428,120]
[421575819,1777906201000,-50000.0,0.000428,30]
[421575824,1777906201000,-1753.20946832,0.00042875,60]
[421575817,1777906201000,-225.00665557,0.000428,30]
[421575814,1777906201000,-805.71,0.00042767,120]
[421575815,1777906201000,-2091.91987382,0.0004279,120]
[421575813,1777906201000,-222.12,0.0004275,120]
[421575812,1777906201000,-860.26,0.00042743,120]
[421575811,1777906201000,-490.24869522,0.0004274,120]
[421575810,1777906201000,-500.0,0.00042739,120]
[421575816,1777906201000,-891.78,0.00042793,120]
[421575822,1777906201000,-860.26,0.00042843,120]
[421575828,1777906201000,-5000.0,0.000429,120]
[421575843,1777906201000,-289.96480448,0.00043,120]
[421575844,1777906201000,-769.5094114,0.00043,120]
[421575842,1777906201000,-10000.0,0.00043,120]
[421575841,1777906201000,-11245.90067667,0.00043,120]
[421575839,1777906201000,-2075.0,0.00043,120]
[421575840,1777906201000,-1000.0,0.00043,120]
[421575838,1777906201000,-805.71,0.00042967,120]
[421575836,1777906201000,-860.26,0.00042943,120]
[421575825,1777906201000,-282.64285768,0.00042887,30]
[421575835,1777906201000,-1116.17751818,0.00042931,120]
[421575832,1777906201000,-152.0,0.000429,120]
[421575834,1777906201000,-1530.480277,0.000429,120]
[421575833,1777906201000,-26535.09127256,0.000429,120]
[421575831,1777906201000,-1745.95516865,0.000429,120]
[421575830,1777906201000,-174828.33612857,0.000429,120]
[421575829,1777906201000,-1087.71790661,0.000429,120]
[421575837,1777906201000,-210.0,0.0004295,30]
[421575859,1777906202000,-402.45780111,0.00043,30]
[421575857,1777906202000,-744.77356078,0.00043,120]
[421575858,1777906202000,-326.19937167,0.00043,120]
[421575856,1777906202000,-8314.10002914,0.00043,120]
[421575855,1777906202000,-4073.9764325,0.00043,120]
[421575853,1777906202000,-50000.0,0.00043,30]
[421575854,1777906202000,-10364.01794675,0.00043,120]
[421575847,1777906202000,-684.64847425,0.00043,120]
[421575850,1777906202000,-1900.0,0.00043,120]
[421575851,1777906202000,-2500.0,0.00043,120]
[421575849,1777906202000,-167.69376034,0.00043,120]
[421575848,1777906202000,-30000.0,0.00043,30]
[421575846,1777906202000,-67695.30597285,0.00043,120]
[421575845,1777906202000,-6253.47218716,0.00043,120]
[421575860,1777906202000,-483.30156454,0.00043,120]
[421575852,1777906202000,-1993.92810464,0.00043,120]
[421575863,1777906202000,-683.43751331,0.00043,120]
[421575867,1777906202000,-1905.5229479,0.00043,120]
[421575862,1777906202000,-11358.64079472,0.00043,120]
[421575879,1777906202000,-300.0,0.00043,120]
[421575877,1777906202000,-1087.2514987,0.00043,120]
[421575876,1777906202000,-2631.48018876,0.00043,120]
[421575878,1777906202000,-1825.86322997,0.00043,120]
[421575875,1777906202000,-325.97,0.00043,30]
[421575861,1777906202000,-5000.0,0.00043,120]
[421575874,1777906202000,-150.0,0.00043,120]
[421575872,1777906202000,-970.0,0.00043,120]
[421575873,1777906202000,-1000.0,0.00043,45]
[421575869,1777906202000,-180.90749178,0.00043,120]
[421575870,1777906202000,-445.65077342,0.00043,120]
[421575868,1777906202000,-500.0,0.00043,120]
[421575866,1777906202000,-1169.6608,0.00043,90]
[421575864,1777906202000,-1614.62501554,0.00043,120]
[421575865,1777906202000,-2343.38681048,0.00043,120]
[421575871,1777906202000,-1141.4,0.00043,120]
[421575888,1777906203000,-2661.86448664,0.000431,120]
[421575892,1777906203000,-805.71,0.00043167,120]
[421575890,1777906203000,-860.26,0.00043143,120]
[421575891,1777906203000,-500.0,0.0004315,120]
[421575889,1777906203000,-500.0,0.0004311,120]
[421575886,1777906203000,-805.71,0.00043067,120]
[421575893,1777906203000,-1294.888,0.0004321,120]
[421575885,1777906203000,-860.26,0.00043043,120]
[421575883,1777906203000,-165.34039946,0.00043,120]
[421575884,1777906203000,-211.92,0.00043014,120]
[421575882,1777906203000,-1400.0,0.00043,120]
[421575881,1777906203000,-500.0,0.00043,120]
[421575880,1777906203000,-705.92773234,0.00043,120]
[421575887,1777906203000,-4166.0,0.0004308,90]
[421575895,1777906203000,-226.57,0.0004325,120]
[421575894,1777906203000,-860.26,0.00043243,120]
[421575897,1777906203000,-2500.0,0.000433,120]
[421575896,1777906203000,-805.71,0.00043267,120]
[421575911,1777906203000,-307.0,0.00043371,120]
[421575909,1777906203000,-155.0,0.00043371,120]
[421575910,1777906203000,-156.0,0.00043371,120]
[421575905,1777906203000,-156.0,0.00043371,120]
[421575908,1777906203000,-155.0,0.00043371,120]
[421575907,1777906203000,-152.0,0.00043371,120]
[421575912,1777906203000,-155.0,0.00043372,120]
[421575904,1777906203000,-805.71,0.00043367,120]
[421575903,1777906203000,-860.26,0.00043343,120]
[421575902,1777906203000,-1600.0,0.00043333,120]
[421575901,1777906203000,-147843.1842694,0.00043333,120]
[421575900,1777906203000,-152.0,0.000433,120]
[421575899,1777906203000,-875.325564,0.000433,120]
[421575898,1777906203000,-50000.0,0.000433,31]
[421575906,1777906203000,-159.0,0.00043371,120]
[421575913,1777906204000,-161.0,0.00043372,120]
[421575914,1777906204000,-159.0,0.00043372,120]
[421575915,1777906204000,-160.0,0.00043372,120]
[421575916,1777906204000,570.12,0.00042191,60]
[421575919,1777906204000,570.12,0.00042191,60]
[421575918,1777906204000,2657.27937095,0.00043378,30]
[421575920,1777906204000,570.12,0.00042191,60]
[421575921,1777906204000,570.12,0.00042191,60]
[421575922,1777906204000,570.14049999,0.00042191,60]
[421575917,1777906204000,570.12,0.00042191,60]
[421575926,1777906205000,156.74,0.00029136,30]
[421575923,1777906205000,156.74,0.00028848,30]
[421575924,1777906205000,317.97053652,0.0004,30]
[421575925,1777906205000,317.97053652,0.00040419,30]
[421575927,1777906205000,881.42,0.00043,30]
[421575930,1777906205000,6588.07,0.00043,30]
[421575928,1777906205000,12100.94,0.00043,30]
[421575932,1777906205000,84130.77408901,0.000387,45]
[421575931,1777906205000,164.58,0.00025875,30]
[421575929,1777906205000,346.0,0.00043,30]
[421575933,1777906205000,442.55230552,0.00041096,120]
[421575962,1777906231000,-739.0,0.00024165,2]
[421575969,1777906231000,-500.0,0.00024499,2]
[421575961,1777906231000,-160.0,0.00024164,7]
[421575959,1777906231000,-400.0,0.00023591,2]
[421575954,1777906231000,-155.8194566,0.00022353,2]
[421575956,1777906231000,-150.0,0.00022407,2]
[421575957,1777906231000,-160.0,0.00023,7]
[421575955,1777906231000,-162.77,0.00022368,2]
[421575953,1777906231000,-256.1805434,0.00022353,2]
[421575947,1777906231000,-195.06300239,0.0001438,2]
[421575958,1777906231000,-422.0,0.00023268,2]
[421575949,1777906231000,-412.0,0.00016438,2]
[421575952,1777906231000,-412.0,0.00020381,2]
[421575948,1777906231000,-162.77,0.00015977,2]
[421575945,1777906231000,-250.0,0.0001406,2]
[421575943,1777906231000,-162.77,0.00012782,2]
[421575944,1777906231000,-300.0,0.0001406,2]
[421575946,1777906231000,-121.9172,0.0001438,2]
[421575963,1777906231000,-56452.37669124,0.00024166,2]
[421575951,1777906231000,-162.77,0.00019173,2]
[421575964,1777906231000,-6508.73440312,0.00024166,2]
[421575950,1777906231000,-412.0,0.0001841,2]
[421575966,1777906231000,-316.18896003,0.00024247,2]
[421575965,1777906231000,-8754.53903084,0.00024166,2]
[421575987,1777906231000,-493.7601611,0.00026903,2]
[421575986,1777906231000,-1160.6351213,0.00026903,2]
[421575983,1777906231000,-398.0,0.00026896,2]
[421575985,1777906231000,-638.94950751,0.00026902,2]
[421575977,1777906231000,-297.75,0.00026336,2]
[421575973,1777906231000,-164.58,0.00025266,7]
[421575972,1777906231000,-167.21,0.00024658,2]
[421575976,1777906231000,-412.0,0.00026296,2]
[421575974,1777906231000,-200.0,0.00025457,2]
[421575984,1777906231000,-179.0,0.00026896,3]
[421575982,1777906231000,-10000.0,0.00026796,2]
[421575978,1777906231000,-1000.0,0.00026575,2]
[421575979,1777906231000,-2907.94,0.00026575,2]
[421575981,1777906231000,-3211.5922465,0.00026776,2]
[421575980,1777906231000,-20592.9407196,0.00026776,2]
[421575971,1777906231000,-164.58,0.00024658,2]
[421575968,1777906231000,-412.0,0.00024324,2]
[421575967,1777906231000,-633.12665658,0.00024324,2]
[421575970,1777906231000,-502.57644709,0.0002463,2]
[421575975,1777906231000,-162.77,0.00025564,2]
[421575960,1777906231000,-162.48539177,0.00024129,2]
[421576056,1777906232000,-500.0,0.00028489,7]
[421576063,1777906232000,-500.0,0.00028489,7]
[421576054,1777906232000,-500.0,0.00028489,7]
[421576055,1777906232000,-185.31866047,0.00028489,7]
[421576052,1777906232000,-150.0,0.00028489,7]
[421576050,1777906232000,-150.0,0.00028489,7]
[421576058,1777906232000,-500.0,0.00028489,7]
[421576053,1777906232000,-500.0,0.00028489,7]
[421576051,1777906232000,-500.0,0.00028489,7]
[421576047,1777906232000,-250.0,0.00028037,5]
[421576057,1777906232000,-500.0,0.00028489,7]
[421576060,1777906232000,-208.07839763,0.00028489,7]
[421576062,1777906232000,-150.0,0.00028489,2]
[421576067,1777906232000,-500.0,0.00028489,7]
[421576061,1777906232000,-209.68043561,0.00028489,7]
[421576065,1777906232000,-500.0,0.00028489,7]
[421576075,1777906232000,-500.0,0.00028489,7]
[421576072,1777906232000,-500.0,0.00028489,7]
[421576069,1777906232000,-500.0,0.00028489,7]
[421576066,1777906232000,-500.0,0.00028489,7]
[421576064,1777906232000,-500.0,0.00028489,7]
[421576070,1777906232000,-500.0,0.00028489,7]
[421576076,1777906232000,-500.0,0.00028489,7]
[421576049,1777906232000,-412.0,0.00028267,2]
[421576074,1777906232000,-500.0,0.00028489,7]
[421576068,1777906232000,-500.0,0.00028489,7]
[421576071,1777906232000,-500.0,0.00028489,7]
[421576073,1777906232000,-500.0,0.00028489,7]
[421576059,1777906232000,-352.12827399,0.00028489,7]
[421576045,1777906232000,-2000.0,0.00027784,2]
[421576001,1777906232000,-150.0,0.00027489,5]
[421576042,1777906232000,-517.52111992,0.00027763,5]
[421575994,1777906232000,-1500.0,0.00027397,2]
[421575995,1777906232000,-300.0,0.00027397,2]
[421575990,1777906232000,-467.0,0.00027,7]
[421575989,1777906232000,-40427.71222,0.00026903,2]
[421575992,1777906232000,-2908.23000585,0.00027138,2]
[421575988,1777906232000,-1022.7970638,0.00026903,2]
[421575991,1777906232000,-507.0,0.00027137,2]
[421576077,1777906232000,-500.0,0.00028489,7]
[421575993,1777906232000,-167.21,0.00027332,7]
[421575997,1777906232000,-238.51,0.00027397,10]
[421576006,1777906232000,-500.0,0.00027763,5]
[421575996,1777906232000,-1015.37,0.00027397,2]
[421576009,1777906232000,-500.0,0.00027763,5]
[421576028,1777906232000,-150.0,0.00027763,5]
[421576012,1777906232000,-500.0,0.00027763,5]
[421576000,1777906232000,-3258.0,0.00027451,2]
[421576002,1777906232000,-467.0,0.00027671,14]
[421576016,1777906232000,-500.0,0.00027763,5]
[421575999,1777906232000,-501.59463972,0.00027421,5]
[421576003,1777906232000,-500.0,0.00027763,5]
[421576019,1777906232000,-150.0,0.00027763,5]
[421576031,1777906232000,-500.0,0.00027763,5]
[421576034,1777906232000,-231.62276807,0.00027763,5]
[421576036,1777906232000,-500.0,0.00027763,5]
[421576038,1777906232000,-500.0,0.00027763,5]
[421576040,1777906232000,-500.0,0.00027763,5]
[421576022,1777906232000,-150.0,0.00027763,5]
[421576025,1777906232000,-500.0,0.00027763,5]
[421575998,1777906232000,-1500.0,0.000274,7]
[421576079,1777906232000,-500.0,0.00028489,7]
[421576139,1777906232000,-200.0,0.00030437,2]
[421576083,1777906232000,-500.0,0.00028489,7]
[421576111,1777906232000,-171.557835,0.00028882,7]
[421576104,1777906232000,-220.08236,0.00028882,7]
[421576117,1777906232000,-179.89109,0.0002937,2]
[421576127,1777906232000,-204.33006192,0.0003013,2]
[421576128,1777906232000,-214.53947204,0.0003013,2]
[421576118,1777906232000,-179.8911,0.0002937,2]
[421576119,1777906232000,-1081.00411685,0.00029375,2]
[421576116,1777906232000,-168.84,0.00029234,2]
[421576121,1777906232000,-178.35,0.00029536,2]
[421576120,1777906232000,-150.0,0.00029534,2]
[421576123,1777906232000,-1548.68937737,0.0003,2]
[421576122,1777906232000,-5487.0,0.00029654,2]
[421576124,1777906232000,-310.52680661,0.0003,2]
[421576112,1777906232000,-171.557835,0.00028882,7]
[421576125,1777906232000,-165.09483293,0.0003,2]
[421576130,1777906232000,-231.143932,0.00030181,14]
[421576131,1777906232000,-500.0,0.00030192,5]
[421576129,1777906232000,-200.0,0.00030136,2]
[421576134,1777906232000,-1054.76352558,0.000302,2]
[421576132,1777906232000,-500.0,0.00030192,5]
[421576133,1777906232000,-500.0,0.00030192,5]
[421576137,1777906232000,-6497.0,0.0003025,2]
[421576136,1777906232000,-412.0,0.00030239,2]
[421576135,1777906232000,-467.0,0.00030205,14]
[421576138,1777906232000,-500.0,0.0003027,5]
[421576141,1777906232000,-909.23998746,0.0003074,5]
[421576140,1777906232000,-507.0,0.00030441,5]
[421576142,1777906232000,-1000.0,0.0003074,5]
[421576126,1777906232000,-150.0,0.000301,14]
[421576108,1777906232000,-208.166904,0.00028882,7]
[421576081,1777906232000,-500.0,0.00028489,7]
[421576109,1777906232000,-171.557835,0.00028882,7]
[421576107,1777906232000,-208.166904,0.00028882,7]
[421576089,1777906232000,-500.0,0.00028489,7]
[421576082,1777906232000,-500.0,0.00028489,7]
[421576078,1777906232000,-500.0,0.00028489,7]
[421576088,1777906232000,-500.0,0.00028489,7]
[421576087,1777906232000,-506.83942771,0.00028489,7]
[421576085,1777906232000,-500.0,0.00028489,7]
[421576086,1777906232000,-500.0,0.00028489,7]
[421576084,1777906232000,-500.0,0.00028489,7]
[421576091,1777906232000,-514.3099146,0.00028489,7]
[421576090,1777906232000,-500.0,0.00028489,7]
[421576101,1777906232000,-220.08236,0.00028882,7]
[421576092,1777906232000,-152.71566209,0.00028585,5]
[421576102,1777906232000,-220.08236,0.00028882,7]
[421576080,1777906232000,-500.0,0.00028489,7]
[421576093,1777906232000,-156.74,0.00028656,2]
[421576094,1777906232000,-154.06,0.00028735,2]
[421576105,1777906232000,-208.166904,0.00028882,7]
[421576114,1777906232000,-156.74,0.0002904,7]
[421576115,1777906232000,-156.77,0.00029232,2]
[421576106,1777906232000,-208.166904,0.00028882,7]
[421576110,1777906232000,-171.557835,0.00028882,7]
[421576113,1777906232000,-156.74,0.00028944,2]
[421576098,1777906232000,-10000.0,0.00028796,2]
[421576097,1777906232000,-467.0,0.00028767,14]
[421576099,1777906232000,-3815.822003,0.00028882,2]
[421576100,1777906232000,-1927.3896044,0.00028882,2]
[421576095,1777906232000,-4689.0,0.00028745,2]
[421576103,1777906232000,-220.08236,0.00028882,7]
[421576096,1777906232000,-156.74,0.00028752,7]
[421576181,1777906233000,-1081.00411685,0.00034534,2]
[421576182,1777906233000,-200.0,0.00034658,2]
[421576180,1777906233000,-848.0,0.0003433,5]
[421576176,1777906233000,-171.557835,0.00034173,7]
[421576177,1777906233000,-171.557835,0.00034173,7]
[421576179,1777906233000,-412.0,0.00034182,7]
[421576174,1777906233000,-393.31359848,0.00034173,7]
[421576173,1777906233000,-346.715898,0.00033982,21]
[421576183,1777906233000,-2000.0,0.0003473,2]
[421576170,1777906233000,-178.35,0.00032671,7]
[421576178,1777906233000,-171.557835,0.00034173,7]
[421576184,1777906233000,-1500.0,0.00034795,2]
[421576193,1777906233000,-150.0,0.00035877,7]
[421576197,1777906233000,-150.0,0.00035877,7]
[421576188,1777906233000,-8638.23626091,0.000358,2]
[421576196,1777906233000,-150.0,0.00035877,7]
[421576187,1777906233000,-560.15742432,0.00035616,7]
[421576185,1777906233000,-3204.93356057,0.00035356,2]
[421576192,1777906233000,-500.0,0.00035873,5]
[421576191,1777906233000,-478.50428337,0.0003581,2]
[421576189,1777906233000,-178.35,0.00035806,30]
[421576190,1777906233000,-478.50428337,0.0003581,2]
[421576194,1777906233000,-150.0,0.00035877,7]
[421576171,1777906233000,-507.0,0.00033745,9]
[421576186,1777906233000,-200.0,0.00035505,2]
[421576168,1777906233000,-925.0,0.000323,2]
[421576154,1777906233000,-208.166904,0.000317,7]
[421576172,1777906233000,-207.63,0.00033956,2]
[421576150,1777906233000,-843.0,0.00031526,5]
[421576143,1777906233000,-761.26257715,0.0003074,5]
[421576144,1777906233000,-500.0,0.00030818,5]
[421576145,1777906233000,-150.0,0.00031011,2]
[421576147,1777906233000,-2000.0,0.00031257,2]
[421576146,1777906233000,-180.5,0.00031021,28]
[421576148,1777906233000,-1500.0,0.00031288,5]
[421576149,1777906233000,-5986.0,0.00031478,2]
[421576151,1777906233000,-637.0,0.00031526,5]
[421576153,1777906233000,-500.0,0.00031699,2]
[421576152,1777906233000,-227.19,0.000316,14]
[421576195,1777906233000,-150.0,0.00035877,7]
[421576161,1777906233000,-220.08236,0.00031894,7]
[421576156,1777906233000,-208.166904,0.000317,7]
[421576162,1777906233000,-220.08236,0.00031894,7]
[421576158,1777906233000,-248.62525,0.00031836,5]
[421576155,1777906233000,-208.166904,0.000317,7]
[421576159,1777906233000,-151.0,0.00031894,7]
[421576157,1777906233000,-208.166904,0.000317,7]
[421576160,1777906233000,-220.08236,0.00031894,7]
[421576164,1777906233000,-1081.00411685,0.00031955,2]
[421576163,1777906233000,-220.08236,0.00031894,7]
[421576165,1777906233000,-412.0,0.0003221,5]
[421576169,1777906233000,-150.0,0.00032562,2]
[421576166,1777906233000,-467.0,0.00032219,14]
[421576167,1777906233000,-1103.4337783,0.00032251,4]
[421576198,1777906233000,-150.0,0.00035877,7]
[421576175,1777906233000,-171.557835,0.00034173,7]
[421576199,1777906233000,-150.0,0.00035877,7]
[421576227,1777906233000,-208.166904,0.0003648,7]
[421576228,1777906233000,-208.166904,0.0003648,7]
[421576232,1777906233000,-2463.0,0.0003648,2]
[421576202,1777906233000,-151.0,0.000359,7]
[421576233,1777906233000,-6040.0,0.0003648,2]
[421576237,1777906233000,-1987.06263908,0.00036792,2]
[421576239,1777906233000,-24999.999999,0.000368,2]
[421576234,1777906233000,-8638.2362609,0.0003652,2]
[421576241,1777906233000,-220.08236,0.000368,7]
[421576236,1777906233000,-306.0,0.00036677,10]
[421576235,1777906233000,-150.0,0.00036541,7]
[421576240,1777906233000,-151.0,0.000368,7]
[421576238,1777906233000,-500.0,0.00036799,2]
[421576243,1777906233000,-220.08236,0.000368,7]
[421576242,1777906233000,-220.08236,0.000368,7]
[421576247,1777906233000,-150.0,0.00036873,7]
[421576244,1777906233000,-220.08236,0.000368,7]
[421576246,1777906233000,-151.0,0.000368,7]
[421576245,1777906233000,-151.0,0.000368,7]
[421576249,1777906233000,-602.13598911,0.00037,2]
[421576250,1777906233000,-135313.46,0.00037,7]
[421576248,1777906233000,-150.0,0.00036873,7]
[421576252,1777906233000,-151.0,0.00037,7]
[421576251,1777906233000,-151.0,0.00037,7]
[421576253,1777906233000,-221.07253,0.00037,7]
[421576224,1777906233000,-1000.0,0.00036421,5]
[421576225,1777906233000,-208.166904,0.0003648,7]
[421576231,1777906233000,-1219.0,0.0003648,2]
[421576226,1777906233000,-208.166904,0.0003648,7]
[421576201,1777906233000,-23639.85957315,0.000359,7]
[421576200,1777906233000,-111673.60042685,0.000359,7]
[421576203,1777906233000,-151.0,0.000359,7]
[421576205,1777906233000,-558.969128,0.000359,7]
[421576207,1777906233000,-558.969128,0.000359,7]
[421576206,1777906233000,-558.969128,0.000359,7]
[421576219,1777906233000,-151.0,0.000359,7]
[421576208,1777906233000,-558.969128,0.000359,7]
[421576209,1777906233000,-151.0,0.000359,7]
[421576211,1777906233000,-151.0,0.000359,7]
[421576210,1777906233000,-280.434536,0.000359,7]
[421576216,1777906233000,-151.0,0.000359,7]
[421576204,1777906233000,-151.0,0.000359,7]
[421576212,1777906233000,-280.434536,0.000359,7]
[421576217,1777906233000,-151.0,0.000359,7]
[421576221,1777906233000,-263.95753337,0.00036225,5]
[421576223,1777906233000,-200.0,0.00036353,2]
[421576229,1777906233000,-1209.626,0.0003648,2]
[421576222,1777906233000,-3204.93356052,0.00036345,2]
[421576254,1777906233000,-558.969128,0.00037,7]
[421576220,1777906233000,-150.0,0.00036209,7]
[421576218,1777906233000,-151.0,0.000359,7]